bitfinex-derivatives/quotes_ETHF0:USTF0_20250217
["timestamp","ask_amount","ask_price","bid_price","bid_amount"]
[1739806034183,3.2078,2822.8,2822.5,0.9365]
[1739806034388,3.2629252,2822.7,2822.1,6.03712226]
[1739806034592,0.70852,2822.4,2822.3,0.70854]
[1739806034785,0.9922,2822.6,2822.1,6.03712226]
[1739806034990,0.70851,2822.4,2822.1,6.03712226]
[1739806035196,0.9922,2822.6,2822.2,0.70855]
[1739806035391,0.70856,2822.2,2822.1,0.00532226]
[1739806035586,3.2078,2822.5,2822.1,0.00532226]
[1739806035895,0.70856,2822.2,2822.1,0.00532226]
[1739806036595,0.70856,2822.2,2821.3,7.035]
[1739806036596,0.70873,2821.6,2821.3,7.035]
[1739806036798,3.2629252,2821.9,2821.3,7.74378]
[1739806037097,0.70872,2821.6,2821.3,7.74379]
[1739806037285,0.70876,2821.4,2821.3,4.211]
[1739806037487,3.2078,2821.6,2821.3,1.0032]
[1739806037690,0.70875,2821.5,2821.3,1.0032]
[1739806037987,6.4707252,2821.6,2821.2,0.00532226]
[1739806038186,7.1795152,2821.3,2821.2,0.00532226]
[1739806038695,6.4707252,2821.3,2821.2,0.00532226]
[1739806039092,7.1795152,2821.3,2821.2,0.00532226]
[1739806039598,3.2078,2821.3,2821.2,0.00532226]
[1739806039792,3.91659,2821.3,2821.2,0.00532226]
[1739806040489,7.1795152,2821.3,2821.2,0.00532226]
[1739806041498,6.4707252,2821.3,2821.2,0.00532226]
[1739806041799,7.1795152,2821.3,2821.2,0.00532226]
[1739806043089,3.2078,2821.3,2821.2,0.00532226]
[1739806043996,6.7935152,2822.1,2821.7,0.70867]
[1739806044197,0.9701,2822.3,2821.8,0.70865]
[1739806044404,0.70865,2821.9,2821.3,2.8888]
[1739806044699,0.70865,2821.9,2821.6,0.7087]
[1739806044903,0.70866,2821.9,2821.6,0.70871]
[1739806045096,6.4707252,2822.1,2821.3,2.8888]
[1739806045292,0.70868,2821.8,2821.5,0.70872]
[1739806045698,6.4707252,2822.1,2821.3,2.8888]
[1739806046098,6.4707252,2822.1,2821.5,3.2078]
[1739806046303,0.70862,2822.0,2821.7,0.70867]
[1739806046502,7.1793352,2822.1,2821.7,0.70867]
[1739806046696,0.70862,2822.0,2821.7,0.70867]
[1739806047106,3.2078,2822.1,2821.5,3.2078]
[1739806047308,0.00532226,2822.4,2822.2,0.70855]
[1739806047504,0.00532226,2822.4,2822.0,3.2078]
[1739806047505,0.00532226,2822.4,2822.3,0.70854]
[1739806047906,0.00532226,2822.4,2822.3,3.2078]
[1739806048904,0.00532226,2822.4,2822.0,3.2078]
[1739806049113,0.7086,2822.1,2821.6,3.2078]
[1739806049303,0.70862,2822.0,2821.6,3.9165]
[1739806050013,0.70872,2821.6,2821.3,3.7505]
[1739806050309,5.0344152,2822.1,2821.5,0.70873]
[1739806050310,1.70434,2821.9,2821.5,0.70873]
[1739806050501,1.70435,2821.9,2821.5,0.70874]
[1739806050702,0.9957,2821.9,2821.4,0.70874]
[1739806051009,0.9957,2821.9,2821.3,3.7505]
[1739806051213,0.9957,2821.9,2821.7,0.70869]
[1739806051710,0.9957,2821.9,2821.5,3.2078]
[1739806051914,0.7087,2821.7,2821.3,3.7505]
[1739806052411,0.9957,2821.9,2821.3,3.7505]
[1739806052612,0.9957,2821.9,2821.3,0.9295]
[1739806052811,3.2629252,2821.8,2821.3,0.9295]
[1739806053111,3.2629252,2821.8,2821.2,0.00532226]
[1739806053112,0.70879,2821.3,2821.2,0.00532226]
[1739806056409,1.71839,2821.3,2821.2,0.00532226]
[1739806056912,1.71839,2821.3,2821.2,0.00391851]
[1739806057107,4.53839,2821.3,2821.2,0.00391851]
[1739806059805,2.819,2821.6,2821.2,0.71272851]
[1739806060017,0.70877,2821.4,2821.2,0.71270851]
[1739806060218,0.70879,2821.3,2821.2,0.00391851]
[1739806060717,0.70879,2821.3,2821.2,0.71272851]
[1739806061016,0.70879,2821.3,2821.2,0.00391851]
[1739806062118,3.91659,2821.3,2821.2,0.00391851]
[1739806063213,0.70879,2821.3,2821.2,0.00391851]
[1739806064021,3.91659,2821.3,2821.2,0.00391851]
[1739806064522,9.91659,2821.3,2821.2,0.00391851]
[1739806065225,9.91659,2821.3,2821.2,8.51e-06]
[1739806067323,0.70907,2820.2,2820.1,1.0022]
[1739806068413,6.4707252,2820.4,2820.1,1.0022]
[1739806068719,0.70905,2820.3,2820.1,1.0022]
[1739806068919,3.26824746,2820.4,2820.1,1.0022]
[1739806069113,0.70907,2820.2,2820.1,4.21]
[1739806069320,0.70907,2820.2,2820.1,1.0022]
[1739806069518,0.70912,2820.0,2819.9,0.00532226]
[1739806069722,7.1798452,2820.0,2819.9,0.00532226]
[1739806070722,3.2629252,2820.0,2819.9,0.00532226]
[1739806071026,3.9720452,2820.0,2819.9,0.00532226]
[1739806071216,2.817,2820.2,2819.9,0.71446226]
[1739806071416,3.52608,2820.2,2819.9,0.71446226]
[1739806071612,2.817,2820.2,2819.9,0.71446226]
[1739806071924,0.70909,2820.1,2819.9,0.71446226]
[1739806072117,2.817,2820.2,2819.9,0.71444226]
[1739806072315,3.9720452,2820.0,2819.9,0.00532226]
[1739806072517,7.1798452,2820.0,2819.9,0.00532226]
[1739806072717,3.91692,2820.0,2819.9,0.00532226]
[1739806072919,7.1798452,2820.0,2819.9,0.00532226]
[1739806073216,3.2629252,2820.0,2819.9,0.00532226]
[1739806073416,3.9720452,2820.0,2819.9,0.00532226]
[1739806074215,3.2629252,2820.0,2819.9,1.67326226]
[1739806074421,3.9720452,2820.0,2819.9,0.96412226]
[1739806074620,7.1798452,2820.0,2819.9,0.96412226]
[1739806075420,7.1798452,2820.0,2819.9,0.00532226]
[1739806080131,3.9720452,2820.0,2819.9,0.00532226]
[1739806080336,3.9720352,2820.1,2820.0,0.70912]
[1739806080534,3.9720352,2820.1,2820.0,0.93]
[1739806081137,0.70912,2820.0,2819.9,0.00532226]
[1739806081634,3.9720352,2820.1,2819.9,0.71445226]
[1739806081839,3.9720352,2820.1,2820.0,1.002]
[1739806081840,3.2629252,2820.1,2820.0,1.002]
[1739806082138,0.00532226,2820.4,2820.0,1.002]
[1739806082341,0.71435226,2820.4,2820.1,0.70907]
[1739806082637,0.00532226,2820.4,2820.2,0.93]
[1739806082841,0.00532226,2820.4,2820.3,0.70904]
[1739806083138,6.4707252,2821.0,2820.3,3.2078]
[1739806083345,3.2629252,2821.0,2820.8,0.70891]
[1739806083534,3.9717852,2821.0,2820.9,0.9402]
[1739806083734,3.2629252,2821.0,2820.9,0.9402]
[1739806084033,3.2629252,2821.0,2820.9,1.64909]
[1739806084333,0.00532226,2821.2,2820.9,0.9402]
[1739806084738,0.70885,2821.1,2820.9,1.64908]
[1739806085529,0.00532226,2821.2,2820.9,0.9402]
[1739806085735,3.2629252,2821.1,2820.9,0.9402]
[1739806086037,0.70886,2821.0,2820.9,0.9402]
[1739806086343,3.9717752,2821.1,2820.9,0.9402]
[1739806086544,3.2629252,2821.1,2820.9,0.9402]
[1739806086737,0.70886,2821.0,2820.9,0.9402]
[1739806087339,3.9717752,2821.1,2820.9,0.9402]
[1739806088346,3.2629252,2821.1,2820.9,0.9402]
[1739806088539,0.70893,2820.8,2820.5,1.66658]
[1739806088746,3.2078,2821.0,2820.7,0.70893]
[1739806088948,3.91669,2821.0,2820.7,0.70893]
[1739806089142,3.2078,2821.0,2820.7,0.70893]
[1739806089445,3.2078,2821.0,2820.6,0.9682]
[1739806089838,0.70893,2820.8,2820.6,1.67715]
[1739806090236,0.70894,2820.7,2820.6,0.9682]
[1739806091451,0.70896,2820.6,2820.5,0.9576]
[1739806092240,0.70904,2820.3,2820.2,0.996]
[1739806093351,0.70909,2820.1,2820.0,1.0119]
[1739806093552,3.9720152,2820.1,2820.0,1.0119]
[1739806094339,0.70912,2820.0,2819.9,0.00532226]
[1739806094548,1.68042,2820.0,2819.9,0.00532226]
[1739806094944,4.49242,2820.0,2819.9,0.00532226]
[1739806095546,10.77958004,2820.0,2819.9,0.00532226]
[1739806095852,0.70932,2819.2,2819.1,1.0119]
[1739806096345,0.28382196,2819.2,2818.6,1.00405309]
[1739806096652,3.2629252,2818.8,2818.6,1.00405309]
[1739806096956,3.91724,2818.7,2818.6,0.06297535]
[1739806097345,3.91724,2818.7,2818.6,0.00532226]
[1739806098754,8.01280761,2818.7,2818.6,0.00532226]
[1739806099549,3.2078,2819.0,2818.6,0.00532226]
[1739806099848,0.00532226,2819.2,2818.9,0.70938]
[1739806100052,0.00532226,2819.2,2818.7,0.967]
[1739806100252,0.00532226,2819.2,2819.0,0.70934]
[1739806100441,0.00532226,2819.2,2819.1,0.70934]
[1739806101048,0.9723,2820.0,2818.7,4.7674]
[1739806101049,4.09556761,2819.8,2818.9,3.2078]
[1739806101258,0.70922,2819.6,2819.2,0.70929]
[1739806101455,3.2078,2819.9,2819.6,0.7092]
[1739806101656,3.91695,2819.9,2819.6,0.7092]
[1739806101854,3.91695,2819.9,2819.5,0.70922]
[1739806102047,3.2078,2819.9,2819.6,0.70921]
[1739806102248,3.91695,2819.9,2819.2,3.2078]
[1739806102457,3.2078,2819.9,2819.2,3.2078]
[1739806102661,0.70921,2819.7,2819.4,0.70925]
[1739806102954,0.70921,2819.7,2818.7,4.7674]
[1739806102955,4.09556761,2819.5,2818.7,1.9564]
[1739806103257,4.09556761,2819.8,2819.1,3.2078]
[1739806103460,0.70922,2819.6,2819.3,0.70928]
[1739806103764,0.7092,2819.7,2819.3,0.70928]
[1739806103953,3.2078,2819.4,2818.7,1.9564]
[1739806104147,0.70938,2819.0,2818.7,1.8947]
[1739806104353,0.70942,2818.8,2818.7,1.8947]
[1739806104552,3.91722,2818.8,2818.7,0.9277]
[1739806105562,0.70942,2818.8,2818.7,0.9277]
[1739806105758,3.2078,2818.8,2818.6,0.00532226]
[1739806106062,0.70944,2818.7,2818.6,0.00532226]
[1739806106264,3.2078,2818.8,2818.6,0.00532226]
[1739806106462,0.70944,2818.7,2818.6,0.00532226]
[1739806106665,3.2078,2818.8,2818.6,0.00532226]
[1739806106862,0.70944,2818.7,2818.6,0.00532226]
[1739806108166,0.70944,2818.7,2818.6,2.26e-06]
[1739806108367,2.60934,2818.7,2818.6,2.26e-06]
[1739806108662,2.89255845,2818.7,2818.6,2.26e-06]
[1739806109265,0.70969,2817.7,2817.6,0.9382]
[1739806109657,7.30336761,2817.9,2817.6,0.9382]
[1739806109959,7.30336761,2817.9,2817.2,1.9621]
[1739806110166,7.30336761,2817.9,2817.3,0.70979]
[1739806110369,7.30336761,2817.9,2817.2,1.9621]
[1739806110565,0.00532226,2817.8,2817.3,0.00532226]
[1739806110775,6.373,2818.2,2817.3,0.00532226]
[1739806110776,3.2078,2818.2,2817.7,3.91749]
[1739806111076,3.2078,2818.6,2818.3,0.70953]
[1739806111267,3.2078,2818.6,2817.8,1.77418]
[1739806111268,0.70952,2818.5,2818.2,0.70955]
[1739806111469,0.70951,2818.5,2818.2,0.70955]
[1739806111870,3.2078,2818.6,2818.0,3.2078]
[1739806112073,0.70962,2818.0,2817.9,0.9386]
[1739806112269,7.30336761,2818.2,2817.5,6.0178]
[1739806112468,7.30336761,2818.2,2817.4,1.64835]
[1739806112769,7.30336761,2817.9,2817.4,0.9386]
[1739806112969,0.70974,2817.5,2817.4,0.9386]
[1739806113178,7.30336761,2817.9,2817.3,0.00532226]
[1739806113179,0.70977,2817.4,2817.3,0.00532226]
[1739806114273,0.70977,2817.4,2816.6,0.05769353]
[1739806114274,6.0,2817.4,2816.6,0.05769353]
[1739806114467,8.01331761,2816.7,2816.6,0.05769353]
[1739806114872,7.30336761,2816.7,2816.2,0.9513]
[1739806115367,0.71005,2816.3,2816.2,0.9513]
[1739806115573,0.71005,2816.3,2816.2,0.95662226]
[1739806116079,7.30336761,2816.4,2816.2,0.95662226]
[1739806116275,0.71005,2816.3,2816.2,0.00532226]
[1739806117177,3.52005,2816.3,2816.2,0.00532226]
[1739806118975,2.81,2816.3,2816.2,0.00532226]
[1739806119171,3.52005,2816.3,2816.2,0.00532226]
[1739806120867,3.52005,2816.3,2815.4,3.91807]
[1739806120868,8.81,2816.3,2815.4,3.2078]
[1739806121070,8.81,2816.3,2814.0,0.05774274]
[1739806121071,4.09556761,2815.5,2814.9,0.9226]
[1739806121279,3.2078,2815.6,2814.9,0.9226]
[1739806121280,4.09556761,2815.2,2814.9,1.63299]
[1739806121480,6.0168,2815.6,2814.9,0.9226]
[1739806121683,10.11236761,2815.6,2815.2,0.71032]
[1739806121881,4.09556761,2815.3,2814.9,0.9226]
[1739806122282,4.09556761,2815.3,2815.1,0.00532226]
[1739806122677,4.80586761,2815.3,2815.1,0.00532226]
[1739806122877,4.09556761,2815.3,2815.1,0.00532226]
[1739806123782,10.11236761,2815.6,2815.2,0.71031]
[1739806123974,10.11236761,2815.6,2815.1,0.00532226]
[1739806124175,0.71031,2815.3,2815.1,0.00532226]
[1739806124384,10.11236761,2815.6,2815.1,0.00532226]
[1739806124685,7.30336761,2815.3,2815.1,0.00532226]
[1739806125183,7.30336761,2815.3,2815.2,0.71032]
[1739806125184,3.2078,2815.3,2815.2,0.71032]
[1739806125578,3.2078,2815.3,2815.1,0.71565226]
[1739806125773,3.2078,2815.3,2815.2,0.71032]
[1739806125975,7.30336761,2815.6,2815.3,0.71029]
[1739806126177,3.2078,2815.9,2815.3,1.77576]
[1739806126481,7.30336761,2816.3,2815.9,0.71012]
[1739806126688,7.30336761,2816.0,2815.4,2.9776]
[1739806126878,0.71023,2815.6,2815.4,0.9709]
[1739806127186,4.09556761,2815.7,2815.4,0.9709]
[1739806127487,0.71025,2815.5,2815.1,0.71566226]
[1739806127680,7.30336761,2815.7,2815.1,0.71566226]
[1739806127879,0.71028,2815.4,2815.1,0.71566226]
[1739806128082,7.30336761,2815.7,2815.1,0.00532226]
[1739806128583,7.30336761,2815.7,2815.1,0.71566226]
[1739806128784,7.30336761,2815.7,2815.1,0.00532226]
[1739806128980,0.71031,2815.3,2815.1,0.00532226]
[1739806129182,0.71032,2815.3,2815.1,0.00532226]
[1739806129381,7.30336761,2815.7,2815.1,0.00532226]
[1739806129382,4.09556761,2815.4,2815.1,0.00532226]
[1739806129875,0.71024,2815.6,2815.3,0.7103]
[1739806130075,7.30336761,2815.7,2815.1,0.00532226]
[1739806130782,7.30336761,2815.7,2815.2,0.71032]
[1739806130982,7.30336761,2815.7,2815.2,3.2078]
[1739806130983,4.80578761,2815.7,2815.2,3.2078]
[1739806131189,0.71023,2815.6,2815.4,0.71027]
[1739806131383,0.71023,2815.6,2815.3,0.71028]
[1739806131586,7.30336761,2815.7,2815.1,0.00532226]
[1739806131784,0.71027,2815.5,2815.1,0.00532226]
[1739806131980,0.71027,2815.5,2815.2,0.71032]
[1739806132188,0.71027,2815.5,2815.1,0.71566226]
[1739806132385,7.30336761,2815.7,2815.2,0.71031]
[1739806132690,7.30336761,2815.7,2815.1,0.00532226]
[1739806132985,4.09556761,2816.3,2815.5,3.2078]
[1739806133183,4.09556761,2816.3,2815.8,0.71015]
[1739806133184,0.71009,2816.2,2815.8,0.71015]
[1739806133384,6.0158,2816.4,2815.8,3.2078]
[1739806133581,10.11136761,2816.4,2815.8,3.2078]
[1739806133785,0.71006,2816.3,2816.0,0.71011]
[1739806133981,0.71009,2816.2,2815.8,3.2078]
[1739806134283,4.09556761,2816.1,2815.8,3.2078]
[1739806134481,0.71015,2815.9,2815.4,0.71027]
[1739806134682,0.71021,2815.7,2815.3,3.66139]
[1739806134986,4.09556761,2815.8,2815.3,0.9898]
[1739806135186,4.09556761,2815.8,2815.5,0.71023]
[1739806135187,0.7102,2815.7,2815.5,0.71023]
[1739806135487,4.09556761,2815.8,2815.3,0.9898]
[1739806135790,3.2078,2816.0,2815.9,0.71015]
[1739806136387,3.2078,2816.3,2815.7,1.9231]
[1739806136682,4.09556761,2816.4,2816.3,0.71005]
[1739806136882,4.09556761,2816.4,2815.8,3.2078]
[1739806137079,0.71008,2816.2,2815.9,0.71014]
[1739806137285,4.09556761,2816.4,2816.0,0.9502]
[1739806137484,4.09556761,2816.4,2816.2,0.71006]
[1739806137485,0.71005,2816.3,2816.2,0.71006]
[1739806137681,4.09556761,2816.4,2816.1,0.71008]
[1739806137886,4.80559761,2816.4,2816.2,0.71006]
[1739806138083,4.09556761,2816.4,2816.0,0.9502]
[1739806138979,0.71006,2816.3,2816.0,1.66031]
[1739806139184,4.09556761,2816.4,2816.0,0.9502]
[1739806139487,4.80559761,2816.4,2816.2,0.71006]
[1739806139894,0.71008,2816.2,2816.0,0.9502]
[1739806140188,4.09556761,2816.4,2816.2,0.71006]
[1739806140381,4.09556761,2816.4,2816.0,0.9502]
[1739806140580,3.2078,2816.6,2816.4,0.71001]
[1739806140785,3.2078,2816.6,2816.0,0.9502]
[1739806140986,0.71003,2816.4,2816.0,0.9502]
[1739806141182,0.71002,2816.4,2816.1,0.71008]
[1739806141382,4.09556761,2816.5,2816.0,0.9502]
[1739806141590,4.09556761,2816.5,2816.4,0.71002]
[1739806141787,0.71006,2816.3,2816.0,0.9502]
[1739806141988,0.71008,2816.2,2816.0,1.66032]
[1739806142191,4.09556761,2816.5,2816.1,3.2078]
[1739806142393,4.09556761,2816.5,2816.4,0.71002]
[1739806142591,0.00532226,2816.7,2816.4,0.71001]
[1739806142797,0.71001,2816.5,2816.2,0.71005]
[1739806142991,0.70999,2816.6,2816.4,0.71001]
[1739806143187,0.00532226,2816.7,2816.4,0.71001]
[1739806143493,0.71528226,2816.7,2816.1,3.2078]
[1739806143794,3.2078,2817.5,2816.5,3.2078]
[1739806144092,0.70971,2817.7,2816.9,1.77475]
[1739806144293,7.30336761,2817.8,2817.0,1.0167]
[1739806144594,3.2078,2817.8,2817.1,4.98242]
[1739806144791,3.2078,2817.8,2817.1,3.2078]
[1739806145192,0.00532226,2817.7,2817.2,0.00532226]
[1739806145590,0.70977,2817.4,2817.2,0.00532226]
[1739806145990,0.70972,2817.6,2817.2,0.00532226]
[1739806146190,0.00532226,2817.7,2817.2,0.00532226]
[1739806146493,0.00532226,2817.7,2817.6,0.70972]
[1739806146992,0.00532226,2817.7,2817.4,0.70977]
[1739806147192,0.00532226,2817.7,2817.3,2.014]
[1739806147392,0.00532226,2817.7,2817.4,0.70975]
[1739806147598,0.00532226,2817.7,2817.3,2.014]
[1739806147797,0.71502226,2817.7,2817.3,2.72379]
[1739806148204,0.00532226,2817.7,2817.3,1.0211]
[1739806148493,0.70976,2817.5,2817.2,0.71513226]
[1739806148895,0.70975,2817.5,2817.3,0.70979]
[1739806149193,0.70975,2817.5,2817.2,0.71512226]
[1739806149402,0.70979,2817.3,2817.2,0.00532226]
[1739806149595,3.2078,2817.5,2817.2,0.00532226]
[1739806149796,0.70975,2817.5,2817.2,0.00532226]
[1739806149997,1.94,2817.6,2817.2,0.00532226]
[1739806150498,2.64974,2817.6,2817.3,0.70979]
[1739806150692,1.70544,2817.6,2817.3,0.70979]
[1739806150996,0.70975,2817.5,2817.3,0.70979]
[1739806151193,1.70544,2817.6,2817.3,0.70979]
[1739806151399,0.70975,2817.5,2817.3,0.70979]
[1739806151596,0.9957,2817.6,2817.2,0.00532226]
[1739806151793,3.2078,2817.5,2817.2,0.00532226]
[1739806152092,0.70978,2817.4,2817.2,0.00532226]
[1739806152394,0.70979,2817.4,2817.2,0.00532226]
[1739806152599,3.2078,2817.5,2817.2,0.00532226]
[1739806152600,3.91756,2817.5,2817.2,0.71514226]
[1739806152802,1.70543,2817.6,2817.3,0.70979]
[1739806153002,0.9957,2817.6,2817.4,0.70977]
[1739806153204,0.9957,2817.6,2817.2,0.00532226]
[1739806153400,0.9957,2817.6,2817.4,0.70975]
[1739806153599,0.00532226,2817.7,2817.6,0.70972]
[1739806154195,0.00532226,2817.7,2817.5,0.70973]
[1739806154698,0.00532226,2817.7,2817.2,0.00532226]
[1739806154895,0.00532226,2817.7,2817.6,0.70972]
[1739806155099,3.2078,2818.4,2817.6,3.91752]
[1739806155299,3.91733,2818.4,2818.1,0.70959]
[1739806155495,3.2078,2818.4,2817.7,4.6091]
[1739806155694,3.91734,2818.4,2818.1,0.70958]
[1739806155899,3.91733,2818.4,2818.1,0.70957]
[1739806156101,3.2078,2818.4,2817.7,2.8349]
[1739806156302,0.70956,2818.3,2818.1,0.70959]
[1739806156494,3.2078,2818.4,2817.7,2.8349]
[1739806156689,3.2078,2818.4,2817.7,4.6091]
[1739806156997,3.2078,2818.4,2818.3,0.70954]
[1739806157198,3.91733,2818.4,2818.2,0.70956]
[1739806157505,3.2078,2818.4,2818.3,0.70954]
[1739806157902,0.00532226,2818.5,2818.4,0.70952]
[1739806158108,0.00532226,2818.5,2818.4,1.70962]
[1739806158803,0.9792,2819.2,2818.4,1.9239]
[1739806159209,0.9792,2819.2,2818.6,3.2078]
[1739806159415,4.09556761,2819.6,2819.2,0.70931]
[1739806159707,4.80479761,2819.6,2818.7,1.77361]
[1739806159895,4.09556761,2819.6,2819.3,0.70927]
[1739806160207,0.70919,2819.7,2819.3,0.70928]
[1739806160500,6.0088,2819.8,2819.3,0.70929]
[1739806160897,6.0088,2819.8,2819.2,0.9377]
[1739806161296,0.70923,2819.6,2819.2,0.9377]
[1739806161502,0.70923,2819.6,2819.3,0.70928]
[1739806161896,4.09556761,2819.9,2819.6,0.70919]
[1739806162102,4.09556761,2819.9,2819.2,4.1455]
[1739806162103,0.70912,2820.0,2819.2,6.1152]
[1739806162298,0.70912,2820.0,2819.7,0.70918]
[1739806162499,0.70912,2820.0,2819.7,0.70917]
[1739806162698,3.2078,2820.1,2819.2,7.88844]
[1739806162900,0.70913,2820.0,2819.7,0.70919]
[1739806163102,3.2078,2820.1,2819.8,0.70914]
[1739806163605,3.2078,2820.1,2819.9,0.9642]
[1739806163805,0.709,2820.5,2820.1,0.70908]
[1739806163994,0.9772,2820.6,2819.9,0.9642]
[1739806164200,0.70904,2820.3,2819.8,0.70916]
[1739806164401,4.09556761,2820.4,2819.7,2.8]
[1739806164600,4.09556761,2820.4,2819.9,0.70913]
[1739806164903,0.70905,2820.3,2819.9,0.70913]
[1739806165106,4.09556761,2820.4,2819.8,0.70914]
[1739806165304,0.70908,2820.2,2819.8,0.70914]
[1739806165505,0.70908,2820.2,2819.9,0.70914]
[1739806166111,4.09556761,2820.4,2819.7,2.8]
[1739806166311,0.7091,2820.1,2819.8,0.70915]
[1739806167004,0.7091,2820.1,2819.7,2.8]
[1739806167210,4.09556761,2820.4,2819.7,2.8]
[1739806167412,0.70913,2820.0,2819.7,2.8]
[1739806167711,0.70912,2820.0,2819.7,2.8]
[1739806167910,0.70911,2820.1,2819.7,3.50918]
[1739806168112,3.2078,2820.1,2819.7,2.8]
[1739806168310,0.70905,2820.3,2820.0,0.7091]
[1739806168505,3.2078,2820.4,2820.0,0.7091]
[1739806168811,3.2078,2820.4,2819.7,2.8]
[1739806169012,3.91683,2820.4,2820.0,0.7091]
[1739806169213,3.2078,2820.4,2819.7,2.8]
[1739806169408,4.09556761,2820.3,2819.7,2.8]
[1739806169619,4.09556761,2820.3,2819.8,0.70916]
[1739806169911,0.70905,2820.3,2819.8,3.2078]
[1739806170114,0.70909,2820.2,2819.8,3.91695]
[1739806170312,0.70909,2820.2,2819.8,3.2078]
[1739806170514,0.70909,2820.2,2819.9,0.70913]
[1739806170711,0.70912,2820.0,2819.8,3.91695]
[1739806171013,0.70911,2820.1,2819.9,0.70914]
[1739806171208,3.2078,2820.4,2819.8,3.2078]
[1739806171414,3.2078,2820.4,2819.8,0.70915]
[1739806171610,4.09556761,2820.2,2819.7,2.8]
[1739806171906,3.2078,2820.1,2819.9,0.00118288]
[1739806172109,3.2078,2820.4,2819.9,0.00118288]
[1739806172604,0.70907,2820.2,2820.0,0.70911]
[1739806172806,0.70906,2820.3,2820.0,0.70911]
[1739806173007,0.70905,2820.3,2820.1,0.70909]
[1739806173309,0.70905,2820.3,2820.1,0.70908]
[1739806173505,3.2078,2820.4,2820.1,0.70908]
[1739806173713,0.70906,2820.3,2820.1,0.70908]
[1739806173910,0.70909,2820.1,2820.0,0.9298]
[1739806174110,0.70908,2820.2,2820.1,0.70909]
[1739806174611,3.2078,2820.4,2820.0,1.6389]
[1739806174811,0.70909,2820.1,2820.0,0.9298]
[1739806175012,3.2078,2820.4,2820.0,0.9298]
[1739806175314,0.70908,2820.2,2820.0,1.6389]
[1739806175516,3.2078,2820.4,2820.0,0.9298]
[1739806175812,3.2078,2820.4,2820.3,0.70904]
[1739806176317,3.2078,2820.4,2820.0,1.9221]
[1739806176617,0.70904,2820.3,2820.0,1.9221]
[1739806177118,3.2078,2820.4,2820.1,0.70908]
[1739806177612,3.2078,2820.4,2819.9,0.00118288]
[1739806177818,3.91682,2820.4,2820.2,0.70905]
[1739806178021,0.70908,2820.2,2819.9,0.00118288]
[1739806178312,3.2078,2820.4,2819.9,0.00118288]
[1739806178514,0.70912,2820.0,2819.9,0.00118288]
[1739806179417,0.9829,2820.1,2819.9,0.00118288]
[1739806179611,0.9829,2820.1,2819.9,0.71031288]
[1739806179807,1.69199,2820.1,2819.9,0.71031288]
[1739806180015,0.9829,2820.1,2820.0,0.70912]
[1739806180220,0.70905,2820.3,2820.1,0.70908]
[1739806180817,3.2078,2820.4,2820.3,0.70904]
[1739806181923,0.9262,2820.9,2820.2,3.2078]
[1739806182120,0.9262,2820.9,2820.3,1.0144]
[1739806182314,0.70897,2820.6,2820.4,0.709]
[1739806182714,0.9262,2820.9,2820.3,1.0144]
[1739806182909,4.134,2820.9,2820.3,1.0144]
[1739806183109,0.70897,2820.6,2820.3,1.0144]
[1739806183315,4.134,2820.9,2820.3,1.0144]
[1739806183515,4.134,2820.9,2820.7,0.70892]
[1739806183915,4.8429,2820.9,2820.7,0.70892]
[1739806184114,20.3808,2821.3,2820.8,0.70891]
[1739806184321,20.3808,2821.3,2820.9,0.70888]
[1739806184322,3.91663,2821.2,2820.9,0.70888]
[1739806184520,3.2078,2821.2,2820.6,4.1978]
[1739806184720,0.70884,2821.1,2820.6,4.1978]
[1739806184922,0.70884,2821.1,2820.8,0.70889]
[1739806185117,3.2078,2821.2,2820.6,4.1978]
[1739806185313,3.2078,2821.0,2820.5,0.71429226]
[1739806185618,0.70896,2820.6,2820.5,0.00532226]
[1739806186624,0.9356,2820.8,2820.5,0.00532226]
[1739806187021,1.64453,2820.8,2820.5,0.00532226]
[1739806187221,1.64453,2820.8,2820.6,0.70896]
[1739806187524,0.70896,2820.6,2820.5,0.00532226]
[1739806187723,3.97181889,2820.6,2820.5,0.00532226]
[1739806188421,0.9356,2820.8,2820.5,0.00532226]
[1739806188621,1.64453,2820.8,2820.6,0.70896]
[1739806188828,0.70885,2821.1,2820.8,0.70889]
[1739806189125,3.26285889,2821.2,2820.5,0.00532226]
[1739806189322,0.70892,2820.8,2820.5,0.71429226]
[1739806189528,3.26285889,2821.2,2820.5,0.00532226]
[1739806189823,0.70894,2820.7,2820.6,0.70896]
[1739806190026,3.26285889,2820.9,2820.5,0.00532226]
[1739806190224,4.90831889,2820.6,2820.5,0.00532226]
[1739806190526,4.19935889,2820.6,2819.9,1.01238288]
[1739806190728,0.709,2820.5,2820.3,0.70903]
[1739806190919,4.90833889,2820.6,2820.4,0.70901]
[1739806191120,4.19935889,2820.6,2819.9,1.01238288]
[1739806191520,4.19935889,2820.6,2820.0,0.00532226]
[1739806191521,0.70902,2820.4,2820.0,0.00532226]
[1739806191921,0.00532226,2820.5,2820.0,0.00532226]
[1739806192122,0.71432226,2820.5,2820.4,0.70901]
[1739806192337,0.70902,2820.4,2820.3,0.70903]
[1739806192828,0.00532226,2820.5,2820.1,4.214]
[1739806193020,0.00532226,2820.5,2820.4,0.70901]
[1739806194927,0.00532226,2820.5,2820.1,4.214]
[1739806195129,0.71433226,2820.5,2820.3,0.70903]
[1739806195323,0.71433226,2820.5,2820.4,0.70901]
[1739806196031,0.71431226,2820.5,2820.4,0.70901]
[1739806197023,0.70903,2820.4,2820.3,0.70904]
[1739806197426,0.00532226,2820.5,2820.1,4.214]
[1739806197427,0.71432226,2820.5,2820.1,4.214]
[1739806197627,0.00532226,2820.5,2820.1,4.214]
[1739806197833,0.00532226,2820.5,2820.4,0.70901]
[1739806197834,0.71432226,2820.5,2820.4,0.70901]
[1739806198338,0.71432226,2820.5,2820.1,4.214]
[1739806198631,0.71432226,2820.5,2820.4,0.70901]
[1739806198830,0.70902,2820.4,2820.3,0.70901]